bitfinex-derivatives/quotes_ETHF0:USTF0_20250327
["timestamp","ask_amount","ask_price","bid_price","bid_amount"]
[1743070068143,2.32970046,2035.3,2035.2,3.68607793]
[1743070068445,2.32970046,2035.3,2035.2,3.03258]
[1743070070146,1.34717046,2035.3,2035.2,3.03258]
[1743070071749,2.32970046,2035.3,2035.2,3.03258]
[1743070072749,1.34717046,2035.3,2035.2,3.03258]
[1743070072950,2.32970046,2035.3,2035.2,3.03258]
[1743070073349,1.34717046,2035.3,2035.2,3.03258]
[1743070073751,2.32970046,2035.3,2035.2,3.03258]
[1743070074845,2.32970046,2035.3,2035.2,43.83258]
[1743070075251,2.32970046,2035.3,2035.2,41.78258]
[1743070077247,2.32970046,2035.3,2035.2,43.17398]
[1743070078251,0.00737046,2035.3,2035.2,43.17398]
[1743070078455,4.9109,2036.1,2035.2,43.17398]
[1743070078456,6.4258,2036.1,2035.3,4.91269]
[1743070078652,1.3924,2036.0,2035.9,0.98224]
[1743070079048,2.3746,2036.0,2035.9,0.98224]
[1743070079349,0.98224,2035.9,2035.8,0.6759]
[1743070079550,0.98234,2035.8,2035.7,0.98231]
[1743070080047,2.37474,2035.8,2035.7,0.98231]
[1743070081450,1.3924,2035.8,2035.7,3.15231]
[1743070081652,3.8579,2036.1,2035.9,0.9822]
[1743070081653,0.9822,2036.0,2035.9,0.9822]
[1743070081857,2.3141,2036.0,2035.9,1.6882]
[1743070082049,2.3141,2036.0,2035.9,3.1022]
[1743070083754,1.3319,2036.0,2035.9,3.1022]
[1743070084250,1.3319,2036.0,2035.9,3.5522]
[1743070084449,1.3319,2036.0,2035.9,3.1022]
[1743070084753,1.3319,2036.0,2035.9,3.5622]
[1743070085155,1.3319,2036.0,2035.9,3.1022]
[1743070085347,1.3319,2036.0,2035.9,3.5322]
[1743070085552,1.3319,2036.0,2035.9,3.1022]
[1743070088545,1.3319,2036.0,2035.9,5.2522]
[1743070088749,1.3319,2036.0,2035.9,3.1022]
[1743070089954,1.3319,2036.0,2035.9,3.7908]
[1743070090252,1.3319,2036.0,2035.9,4.2108]
[1743070090558,1.3319,2036.0,2035.9,3.7908]
[1743070091057,1.3319,2036.0,2035.9,6.1808]
[1743070091250,1.3319,2036.0,2035.9,5.8308]
[1743070092152,0.98943934,2036.2,2036.1,0.98215]
[1743070093658,2.30273934,2036.2,2036.1,0.98215]
[1743070095054,1.32060934,2036.2,2036.1,0.98215]
[1743070095255,2.30270934,2036.2,2036.1,0.98215]
[1743070096957,1.32060934,2036.2,2036.1,0.98215]
[1743070097152,2.30270934,2036.2,2036.1,0.98215]
[1743070097460,1.32060934,2036.2,2036.1,0.98215]
[1743070097651,1.32060934,2036.2,2036.1,1.42215]
[1743070097851,0.00730934,2036.2,2036.1,0.98215]
[1743070098455,0.00730934,2036.2,2036.1,41.78215]
[1743070098655,1.43640934,2036.2,2036.1,41.78215]
[1743070099055,1.43640934,2036.2,2036.1,43.97215]
[1743070099358,0.00730934,2036.2,2036.1,41.78215]
[1743070099562,0.00730934,2036.2,2036.1,45.19845]
[1743070099749,0.00730934,2036.2,2036.1,43.13845]
[1743070099955,0.00730934,2036.2,2036.1,45.32845]
[1743070100155,0.00730934,2036.2,2036.1,43.13845]
[1743070100552,0.00730934,2036.2,2036.1,45.27845]
[1743070100753,0.00730934,2036.2,2036.1,45.07845]
[1743070101254,0.00730934,2036.2,2036.1,43.13845]
[1743070101561,0.00730934,2036.2,2036.1,45.25845]
[1743070101958,0.00730934,2036.2,2036.1,45.29845]
[1743070102154,0.00730934,2036.2,2036.1,43.13845]
[1743070102855,0.00730934,2036.2,2036.1,45.49845]
[1743070105560,0.00730934,2036.2,2036.1,43.13845]
[1743070105759,0.00730934,2036.2,2036.1,45.14845]
[1743070106064,0.00730934,2036.2,2036.1,43.13845]
[1743070106261,0.00730934,2036.2,2036.1,45.25845]
[1743070106466,0.00730934,2036.2,2036.1,45.08845]
[1743070106966,0.00730934,2036.2,2036.1,45.20845]
[1743070107362,0.00730934,2036.2,2036.1,45.51845]
[1743070107662,2.45455,2036.8,2036.1,45.51845]
[1743070107663,0.98186,2036.8,2036.7,0.98181]
[1743070108566,0.98186,2036.7,2036.6,1.67686]
[1743070108969,0.98186,2036.7,2036.6,3.04026]
[1743070109268,0.98186,2036.7,2036.6,43.84026]
[1743070113170,2.34076,2036.7,2036.6,43.84026]
[1743070114572,2.34076,2036.7,2036.6,42.47686]
[1743070115068,2.34076,2036.7,2036.6,40.8]
[1743070115271,0.9821,2036.3,2036.2,0.98207]
[1743070115666,3.5839,2036.3,2036.2,0.98207]
[1743070116171,3.5839,2036.3,2036.2,41.78207]
[1743070116479,2.45525,2036.2,2035.9,0.00737046]
[1743070116777,0.9822,2036.0,2035.9,0.00737046]
[1743070116964,0.9822,2036.0,2035.9,0.98961046]
[1743070117478,0.9822,2036.0,2035.9,0.00737046]
[1743070117668,0.9822,2036.0,2035.9,0.98961046]
[1743070117868,4.19,2036.0,2035.9,0.00737046]
[1743070118380,7.386,2036.0,2035.9,0.00737046]
[1743070119079,2.28037,2036.1,2036.0,0.9822]
[1743070119379,1.2982,2036.1,2036.0,1.3722]
[1743070119578,1.2982,2036.1,2036.0,3.4582]
[1743070120369,1.2982,2036.1,2036.0,44.2582]
[1743070120678,0.98209,2036.3,2036.2,0.9821]
[1743070121073,6.4098,2036.7,2036.3,2.45513]
[1743070121271,6.4098,2036.7,2036.5,0.98191]
[1743070121272,0.98194,2036.6,2036.5,0.98191]
[1743070121471,0.98194,2036.6,2036.5,1.66271]
[1743070121671,7.39168,2036.7,2036.6,0.98191]
[1743070121873,7.39168,2036.7,2036.6,41.78191]
[1743070122177,7.39168,2036.7,2036.6,43.14651]
[1743070122370,4.18968,2036.7,2036.6,43.14651]
[1743070122573,0.98188,2036.7,2036.6,2.34651]
[1743070124378,1.3475,2036.8,2036.5,42.46273]
[1743070124379,0.98191,2036.6,2036.5,42.46273]
[1743070124580,0.98191,2036.6,2036.5,43.87923]
[1743070126579,0.982,2036.4,2036.3,0.98201]
[1743070126776,0.9821,2036.3,2036.2,0.98207]
[1743070126977,2.4056,2036.3,2036.2,2.39857]
[1743070127774,0.9821,2036.2,2036.1,6.6937]
[1743070127980,2.3031,2036.2,2036.1,1.68785]
[1743070128578,2.3031,2036.2,2036.1,0.7057]
[1743070128880,2.3031,2036.2,2036.1,1.68785]
[1743070129180,0.98215,2036.1,2036.0,2.27328]
[1743070129479,2.30315,2036.1,2036.0,2.27328]
[1743070129876,2.30315,2036.1,2036.0,1.2911]
[1743070130077,2.30315,2036.1,2036.0,2.2733]
[1743070130278,2.30315,2036.1,2036.0,1.2911]
[1743070130574,2.30315,2036.1,2035.9,43.13929046]
[1743070130575,0.9822,2036.0,2035.9,43.13929046]
[1743070130775,2.3604,2036.0,2035.9,43.13929046]
[1743070130975,2.3604,2036.0,2035.9,42.15707046]
[1743070131277,2.3604,2036.0,2035.9,40.80737046]
[1743070131780,1.3782,2036.0,2035.9,41.78961046]
[1743070131976,1.3782,2036.0,2035.9,43.17011046]
[1743070131977,2.3604,2036.0,2035.9,43.17011046]
[1743070134993,0.98197,2036.6,2036.5,0.98192]
[1743070135168,2.45453,2036.8,2036.6,0.98187]
[1743070135169,0.9819,2036.7,2036.6,0.98187]
[1743070135372,0.98194,2036.6,2036.5,0.98191]
[1743070136277,0.98195,2036.5,2036.4,1.4063]
[1743070136473,0.98195,2036.5,2036.4,0.982]
[1743070136474,2.28125,2036.5,2036.4,0.982]
[1743070136668,1.2993,2036.5,2036.4,2.7883]
[1743070136872,1.2993,2036.5,2036.4,4.7183]
[1743070137074,0.98189,2036.7,2036.6,0.98191]
[1743070137582,0.98185,2036.8,2036.7,0.98181]
[1743070138381,2.28115,2036.8,2036.7,0.98181]
[1743070138882,2.28115,2036.8,2036.7,1.69181]
[1743070139984,2.28115,2036.8,2036.7,0.71]
[1743070140179,2.28115,2036.8,2036.7,1.69186]
[1743070140378,2.28115,2036.8,2036.7,2.1405]
[1743070140585,2.28115,2036.8,2036.7,3.12236]
[1743070143391,2.28115,2036.8,2036.7,2.1405]
[1743070143683,2.28115,2036.8,2036.7,3.12236]
[1743070145684,2.28115,2036.8,2036.7,2.1405]
[1743070145884,2.28115,2036.8,2036.7,3.12236]
[1743070146285,2.28115,2036.8,2036.7,2.1405]
[1743070146490,0.9821,2036.3,2036.2,0.98206]
[1743070146680,0.9821,2036.3,2036.2,1.6794]
[1743070146879,0.9821,2036.3,2036.2,0.6973]
[1743070147080,0.9821,2036.3,2036.2,1.6794]
[1743070147275,0.9821,2036.3,2036.2,0.6973]
[1743070147476,0.9821,2036.2,2036.1,1.3895]
[1743070147681,6.31236,2036.4,2036.0,43.14027]
[1743070147682,0.98215,2036.1,2036.0,43.14027]
[1743070147890,2.38435,2036.1,2036.0,44.52977]
[1743070148781,0.98215,2036.2,2036.1,0.9821]
[1743070148982,2.32205,2036.2,2036.1,2.4129]
[1743070150591,1.3399,2036.2,2036.1,2.4129]
[1743070151186,1.3399,2036.2,2036.1,2.8129]
[1743070151381,1.3399,2036.2,2036.1,2.4129]
[1743070151594,1.3399,2036.2,2036.1,2.8029]
[1743070151891,4.20195,2036.6,2036.5,0.98195]
[1743070153291,4.20195,2036.6,2036.5,2.31095]
[1743070153689,4.20195,2036.6,2036.5,1.329]
[1743070153893,0.98195,2036.5,2036.4,2.33359]
[1743070154088,0.982,2036.4,2036.3,2.31101]
[1743070154493,2.3915,2036.4,2036.3,2.31101]
[1743070156687,0.98205,2036.3,2036.2,0.6901]
[1743070156887,2.39755,2036.3,2036.2,0.98206]
[1743070157082,0.9821,2036.2,2036.1,4.18991]
[1743070157287,2.3976,2036.2,2036.1,0.98211]
[1743070158998,0.98182,2036.9,2036.8,0.98176]
[1743070159594,0.98182,2036.9,2036.8,41.78176]
[1743070159797,0.98182,2036.9,2036.8,0.98176]
[1743070159997,0.98182,2036.9,2036.8,2.31616]
[1743070160293,0.98182,2036.9,2036.6,2.46203046]
[1743070160294,0.98186,2036.7,2036.6,0.98927046]
[1743070160485,4.18966,2036.7,2036.6,0.98928046]
[1743070160685,7.44766,2036.7,2036.6,0.00737046]
[1743070160888,8.82026,2036.7,2036.6,0.00737046]
[1743070162801,5.56226,2036.7,2036.6,0.00737046]
[1743070163098,8.81926,2036.7,2036.6,0.00737046]
[1743070174412,11.31926,2036.7,2036.6,4.6e-07]
[1743070174616,4.9096,2036.6,2035.7,40.8]
[1743070174912,0.98229,2035.8,2035.7,43.14132]
[1743070175605,0.98229,2035.8,2035.7,1.359]
[1743070175907,0.98229,2035.8,2035.7,2.34134]
[1743070176713,0.98229,2035.8,2035.7,3.72914]
[1743070177117,2.34707,2035.9,2035.8,0.98229]
[1743070177306,2.34707,2035.9,2035.8,1.3878]
[1743070178212,2.34707,2035.9,2035.8,2.37009]
[1743070178412,2.34707,2035.9,2035.8,1.3878]
[1743070184321,2.45574,2035.8,2035.5,0.00737046]
[1743070184515,0.98239,2035.6,2035.5,0.71547046]
[1743070185815,2.39799,2035.6,2035.5,0.71547046]
[1743070186529,0.98239,2035.6,2035.5,1.69791046]
[1743070186719,0.98239,2035.6,2035.5,2.09791046]
[1743070187115,3.2078,2035.7,2035.6,0.98239]
[1743070187322,3.2078,2035.7,2035.6,4.47299]
[1743070187525,3.2078,2035.7,2035.6,2.29299]
[1743070187724,3.2078,2035.7,2035.6,43.55299]
[1743070188027,4.19014,2035.7,2035.6,43.09299]
[1743070188220,3.2078,2035.7,2035.6,43.09299]
[1743070188524,0.98234,2035.8,2035.7,0.98231]
[1743070188725,0.98234,2035.8,2035.7,2.28211]
[1743070190121,7.11361046,2035.9,2035.5,0.71547046]
[1743070190426,4.19019,2035.6,2035.5,2.01527046]
[1743070190726,7.42619,2035.6,2035.5,0.71547046]
[1743070194423,7.42619,2035.6,2035.5,0.00737046]
[1743070195823,4.21839,2035.6,2035.5,0.00737046]
[1743070196225,7.42619,2035.6,2035.5,1.32617046]
[1743070198325,7.42619,2035.6,2035.5,0.00737046]
[1743070198532,9.92619,2035.6,2035.5,4.6e-07]
[1743070199320,15.75619,2035.6,2035.5,4.6e-07]
[1743070199531,0.98268,2035.0,2034.9,2.97553]
[1743070199826,4.22768,2035.0,2034.9,1.67553]
[1743070200917,4.22768,2035.0,2034.9,2.07553]
[1743070201117,4.22768,2035.0,2034.9,1.67553]
[1743070202532,0.98268,2035.0,2034.9,2.13553]
[1743070202731,0.98268,2035.0,2034.9,1.67553]
[1743070205131,2.40878,2035.0,2034.9,1.67553]
[1743070206432,2.40878,2035.0,2034.9,0.6928]
[1743070206930,0.98273,2034.9,2034.8,0.7142]
[1743070207139,0.98277,2034.8,2034.7,0.00737046]
[1743070207326,4.22077,2034.8,2034.7,0.00737046]
[1743070210740,0.98277,2034.8,2034.7,0.99019046]
[1743070210931,7.42548,2035.0,2034.9,0.98273]
[1743070211236,8.76138,2035.0,2034.9,0.98273]
[1743070211633,10.23551,2035.0,2034.7,0.00737046]
[1743070211942,0.98277,2034.9,2034.8,0.98277]
[1743070212536,2.28507,2034.9,2034.8,0.98277]
[1743070213243,1.3023,2034.9,2034.8,0.98277]
[1743070213434,0.98273,2034.9,2034.8,0.98277]
[1743070213742,5.49282,2035.0,2034.9,0.98273]
[1743070216640,0.98277,2034.9,2034.8,0.98274]
[1743070216834,2.40787,2034.9,2034.8,0.98274]
[1743070219444,2.40787,2034.9,2034.8,2.31274]
[1743070222141,2.40787,2034.9,2034.8,2.31277]
[1743070222945,2.40787,2034.9,2034.8,1.33]
[1743070223149,2.40787,2034.9,2034.8,2.31277]
[1743070223945,0.98277,2034.8,2034.7,0.99016046]
[1743070224146,2.41337,2034.8,2034.7,2.31956046]
[1743070224350,2.41337,2034.8,2034.7,1.33677046]
[1743070225035,2.41337,2034.8,2034.7,2.31959046]
[1743070228640,2.41337,2034.8,2034.7,1.33677046]
[1743070228841,2.41337,2034.8,2034.7,2.31959046]
[1743070229552,2.41337,2034.8,2034.7,1.33677046]
[1743070229755,2.41337,2034.8,2034.7,0.00737046]
[1743070229949,5.63037,2034.8,2034.7,0.00737046]
[1743070231043,8.13037,2034.8,2034.7,0.00737046]
[1743070231244,0.98306,2034.2,2034.1,3.08888]
[1743070231549,0.98306,2034.2,2034.1,0.6735]
[1743070231849,0.98316,2034.0,2033.9,1.4323]
[1743070232044,0.98321,2033.9,2033.8,2.36373]
[1743070232244,2.31681,2033.9,2033.8,1.3805]
[1743070232750,2.31681,2033.9,2033.8,4.21606]
[1743070233255,2.31681,2033.9,2033.8,2.8128]
[1743070233853,2.31681,2033.9,2033.8,6.08606]
[1743070234156,2.31681,2033.9,2033.8,4.18606]
[1743070234455,2.31681,2033.9,2033.8,2.8128]
[1743070234655,2.31681,2033.9,2033.8,3.79606]
[1743070234854,2.31681,2033.9,2033.8,3.2828]
[1743070235155,2.31681,2033.9,2033.8,4.26606]
[1743070235656,2.31681,2033.9,2033.8,3.79606]
[1743070235852,2.31681,2033.9,2033.8,2.8128]
[1743070236154,2.31681,2033.9,2033.8,3.79606]
[1743070236851,2.31681,2033.9,2033.8,4.19606]
[1743070237060,2.31681,2033.9,2033.8,3.79606]
[1743070237354,2.31681,2033.9,2033.8,45.06606]
[1743070237943,2.31681,2033.9,2033.8,44.59606]
[1743070238343,2.31681,2033.9,2033.8,45.04606]
[1743070238544,2.31681,2033.9,2033.8,44.59606]
[1743070239355,2.31681,2033.9,2033.8,45.00606]
[1743070239556,2.31681,2033.9,2033.8,44.59606]
[1743070240847,2.31681,2033.9,2033.8,45.02606]
[1743070241053,2.31681,2033.9,2033.8,44.59606]
[1743070242152,2.31681,2033.9,2033.8,45.05606]
[1743070242352,2.31681,2033.9,2033.8,44.59606]
[1743070242553,2.31681,2033.9,2033.8,45.04606]
[1743070242963,2.31681,2033.9,2033.8,44.59606]
[1743070244054,2.31681,2033.9,2033.8,3.79606]
[1743070244482,2.31681,2033.9,2033.8,4.18606]
[1743070244797,2.31681,2033.9,2033.8,3.79606]
[1743070245386,2.31681,2033.9,2033.8,4.24606]
[1743070245688,2.31681,2033.9,2033.8,2.8128]
[1743070246584,2.31681,2033.9,2033.8,43.6128]
[1743070247265,0.98331,2033.7,2033.6,0.99071046]
[1743070247456,0.98331,2033.7,2033.6,3.75391046]
[1743070247656,0.98331,2033.7,2033.6,43.57057046]
[1743070248061,0.98331,2033.7,2033.6,44.55392046]
[1743070248554,0.98331,2033.7,2033.6,44.96392046]
[1743070248866,0.98331,2033.7,2033.6,43.98057046]
[1743070249167,0.98331,2033.7,2033.6,43.57057046]
[1743070251891,2.29291,2033.7,2033.6,43.57057046]
[1743070253188,2.29291,2033.7,2033.6,44.55392046]
[1743070253576,2.29291,2033.7,2033.6,44.96392046]
[1743070253804,2.29291,2033.7,2033.6,44.55392046]
[1743070254284,2.29291,2033.7,2033.6,43.97057046]
[1743070254487,2.29291,2033.7,2033.6,2.77057046]
[1743070254976,2.29291,2033.7,2033.6,43.57057046]
[1743070255875,2.29291,2033.7,2033.6,2.77057046]
[1743070256061,5.49691,2033.7,2033.6,2.77057046]
[1743070257067,5.49691,2033.7,2033.6,3.18057046]
[1743070257274,5.49691,2033.7,2033.6,2.77057046]
[1743070257471,5.49691,2033.7,2033.6,3.75392046]
[1743070257671,5.49691,2033.7,2033.6,2.77057046]
[1743070258061,5.49691,2033.7,2033.6,3.75392046]
[1743070258268,5.49691,2033.7,2033.6,4.17392046]
[1743070258672,5.49691,2033.7,2033.6,3.75392046]
[1743070259661,5.49691,2033.7,2033.6,2.77057046]
[1743070259863,5.49691,2033.7,2033.6,3.23057046]
[1743070260063,5.49691,2033.7,2033.6,2.77057046]
[1743070260372,5.49691,2033.7,2033.6,3.75392046]
[1743070261073,5.49691,2033.7,2033.6,4.16392046]
[1743070261582,5.49691,2033.7,2033.6,2.77057046]
[1743070261975,5.49691,2033.7,2033.6,3.17057046]
[1743070262171,5.49691,2033.7,2033.6,2.77057046]
[1743070262771,5.49691,2033.7,2033.6,3.75392046]
[1743070262971,5.49691,2033.7,2033.6,4.21392046]
[1743070263172,5.49691,2033.7,2033.6,3.75392046]
[1743070263970,5.49691,2033.7,2033.6,4.17392046]
[1743070264374,5.49691,2033.7,2033.6,3.75392046]
[1743070264575,5.49691,2033.7,2033.6,4.16392046]
[1743070265175,5.49691,2033.7,2033.6,3.75392046]
[1743070266774,5.49691,2033.7,2033.6,4.20392046]
[1743070266978,5.49691,2033.7,2033.6,3.75392046]
[1743070268370,0.00737046,2034.1,2034.0,0.98316]
[1743070268570,0.00737046,2034.1,2034.0,3.49316]
[1743070268775,3.194,2034.3,2034.2,0.98306]
[1743070269082,0.98296,2034.5,2034.4,0.98297]
[1743070269083,5.56226,2034.5,2034.4,0.98297]
[1743070269665,5.56226,2034.5,2034.4,2.94497]
[1743070271571,5.56226,2034.5,2034.4,1.962]
[1743070271781,5.56226,2034.5,2034.4,2.94497]
[1743070271982,5.56226,2034.5,2034.4,1.962]
[1743070272579,5.56226,2034.5,2034.4,2.94497]
[1743070274077,4.5793,2034.5,2034.4,2.94497]
[1743070274380,5.56222,2034.5,2034.4,2.94497]
[1743070275982,5.56222,2034.5,2034.4,1.962]
[1743070276172,5.56222,2034.5,2034.4,2.94497]
[1743070277068,5.56222,2034.5,2034.4,1.962]
[1743070277273,0.98306,2034.2,2034.1,0.9831]
[1743070277876,0.98306,2034.2,2034.1,2.3062]
[1743070278678,2.38396,2034.3,2034.2,0.98306]
[1743070278883,2.38396,2034.3,2034.2,2.30616]
[1743070280077,1.4009,2034.3,2034.2,2.30616]
[1743070280280,4.19078,2034.4,2034.3,0.98302]
[1743070280479,3.2078,2034.4,2034.3,2.37432]
[1743070280781,2.30771,2034.6,2034.5,0.98292]
[1743070280970,5.49771,2034.6,2034.5,0.98292]
[1743070281172,4.5148,2034.6,2034.5,0.98292]
[1743070281480,5.49767,2034.6,2034.5,2.37422]
[1743070282484,5.49767,2034.6,2034.5,1.3913]
[1743070283378,5.49767,2034.6,2034.5,2.37422]
[1743070285981,2.30767,2034.6,2034.5,2.37422]
[1743070293597,3.21517046,2034.7,2034.6,0.98287]
[1743070293791,3.21517046,2034.7,2034.6,2.29247]
[1743070294383,0.00737046,2034.7,2034.6,2.29247]
[1743070294586,0.00737046,2034.7,2034.6,4.39247]
[1743070294786,0.00737046,2034.7,2034.6,43.09247]
[1743070294993,0.00737046,2034.7,2034.6,45.24247]
[1743070295384,0.00737046,2034.7,2034.6,43.09247]
[1743070296187,0.98292,2034.5,2034.4,2.33837]
[1743070296382,0.98292,2034.5,2034.4,3.64277]
[1743070297886,0.98292,2034.5,2034.4,4.03277]
[1743070298088,0.98292,2034.5,2034.4,3.64277]
[1743070301496,2.40201,2034.6,2034.5,0.98292]
[1743070301697,2.40201,2034.6,2034.5,2.30922]
[1743070305906,2.40201,2034.6,2034.5,1.3263]
[1743070306106,0.98292,2034.5,2034.4,2.33835]
[1743070306307,2.38422,2034.5,2034.4,2.33835]
[1743070306806,2.38422,2034.5,2034.4,43.13835]
[1743070309904,1.4013,2034.5,2034.4,43.13835]
[1743070310110,0.00737046,2034.7,2034.6,0.98287]
[1743070310304,1.39907046,2034.7,2034.6,0.98287]
[1743070311009,5.83,2035.2,2035.0,0.98268]
[1743070311196,6.3798,2035.1,2034.7,5.2901]
[1743070311400,6.3798,2035.1,2034.6,40.8]
[1743070311401,0.98282,2034.7,2034.6,40.8]
[1743070311605,0.98303,2034.3,2034.2,0.98304]
[1743070311811,2.45722,2034.6,2034.2,0.98304]
[1743070311812,5.66512,2034.5,2034.2,0.98306]
[1743070312109,0.98306,2034.2,2034.1,4.85019]
[1743070312511,0.98306,2034.2,2034.1,0.66667046]
[1743070312612,0.98306,2034.2,2034.1,0.00737046]
[1743070313608,2.35176,2034.2,2034.1,0.00737046]
[1743070313810,5.55956,2034.2,2034.1,0.00737046]
[1743070314710,2.35176,2034.2,2034.1,0.99048046]
[1743070315010,2.35176,2034.2,2034.1,2.34748046]
[1743070315196,2.35176,2034.2,2034.1,1.36437046]
[1743070315400,2.35176,2034.2,2034.1,0.00737046]
[1743070315401,5.55956,2034.2,2034.1,0.00737046]
[1743070315596,6.83826,2034.2,2034.1,0.00737046]
[1743070316814,6.83826,2034.2,2033.7,0.6671]
[1743070316815,0.98326,2033.8,2033.7,0.6671]
[1743070317012,6.3848,2033.8,2033.5,3.8929]
[1743070317206,0.98335,2033.6,2033.5,4.8763]
[1743070317510,0.98335,2033.6,2033.5,44.6929]
[1743070318305,0.98335,2033.6,2033.5,46.1181]
[1743070318715,0.98335,2033.6,2033.5,42.9103]
[1743070318918,0.98335,2033.6,2033.5,2.1103]
[1743070320807,0.98335,2033.6,2033.5,3.0937]
[1743070321004,1.3067,2033.7,2033.6,0.98335]
[1743070321317,4.16325,2033.9,2033.8,0.98322]
[1743070321625,4.16325,2033.9,2033.8,41.78322]
[1743070322113,3.18,2033.9,2033.8,43.16682]
[1743070322420,0.9832,2034.0,2033.9,0.98321]
[1743070322716,0.9832,2034.0,2033.9,2.38661]
[1743070323013,0.9832,2034.0,2033.9,3.05961]
[1743070324512,8.67354,2034.1,2034.0,0.98316]
[1743070324716,8.67354,2034.1,2034.0,2.38656]
[1743070324916,8.67354,2034.1,2034.0,1.4034]
[1743070326311,8.67354,2034.1,2034.0,2.38656]
[1743070329817,8.67354,2034.1,2034.0,1.4034]
[1743070331015,8.67354,2034.1,2034.0,2.38656]
[1743070331220,8.67354,2034.1,2034.0,1.4034]
[1743070331822,8.67354,2034.1,2034.0,2.38656]
[1743070332022,8.67354,2034.1,2034.0,1.4034]
[1743070333422,8.67354,2034.1,2034.0,2.38656]
[1743070333823,8.67354,2034.1,2034.0,1.4034]
[1743070334123,8.67354,2034.1,2034.0,2.38656]
[1743070334524,8.67354,2034.1,2034.0,1.4034]
[1743070336520,8.67354,2034.1,2034.0,2.38656]
[1743070338922,3.2078,2034.1,2034.0,2.38656]
[1743070339117,3.2078,2034.5,2034.4,0.98294]
[1743070339425,3.2078,2034.5,2034.2,2.45756]
[1743070339426,0.99024046,2034.6,2034.5,0.98292]
[1743070341923,0.00737046,2034.6,2034.5,0.98292]
[1743070342435,0.99024046,2034.6,2034.5,0.98292]
[1743070342927,0.00737046,2034.6,2034.5,0.98292]
[1743070343428,0.98278,2034.9,2034.8,0.98273]
[1743070344027,0.98278,2034.9,2034.8,43.15763]
[1743070344222,2.28978,2034.9,2034.8,43.15763]
[1743070346830,2.28978,2034.9,2034.8,43.87203]
[1743070348826,1.307,2034.9,2034.8,43.87203]
[1743070349033,4.15600046,2035.1,2035.0,0.98268]
[1743070349227,5.55590046,2035.1,2035.0,0.98268]
[1743070349430,0.98268,2035.0,2034.9,1.3794]
[1743070349622,0.98273,2034.9,2034.8,2.0543]
[1743070349827,0.98273,2034.9,2034.8,3.03707]
[1743070350131,0.98273,2034.9,2034.8,43.83707]
[1743070351730,2.33523,2034.9,2034.8,43.83707]
[1743070352432,2.33523,2034.9,2034.8,42.8543]
[1743070352733,2.33523,2034.9,2034.8,43.83707]
[1743070353836,2.33523,2034.9,2034.8,42.8543]
[1743070354234,2.33523,2034.9,2034.8,43.83707]
[1743070354434,2.33523,2034.9,2034.8,42.8543]
[1743070355434,2.33523,2034.9,2034.8,41.5144]
[1743070355635,2.33523,2034.9,2034.8,40.8]
[1743070358145,2.33523,2034.9,2034.4,8.44533]
[1743070358146,0.98297,2034.4,2034.3,0.00737046]
[1743070358437,0.98311,2034.1,2034.0,0.663]
[1743070358638,0.98321,2033.9,2033.8,1.2976]
[1743070360944,0.98326,2033.8,2033.7,0.6855]
[1743070361137,8.66426,2033.8,2033.7,0.6855]
[1743070361640,0.98331,2033.7,2033.6,1.98247046]
[1743070361847,2.27341,2033.7,2033.6,1.98247046]
[1743070364344,5.48121,2033.7,2033.6,1.98247046]
[1743070366633,2.27341,2033.7,2033.6,1.98247046]
[1743070366837,5.48121,2033.7,2033.6,1.98247046]
[1743070370451,5.48121,2033.7,2033.6,0.00737046]
[1743070371446,2.27341,2033.7,2033.6,0.00737046]
[1743070371649,5.45241,2033.7,2033.6,1.63732046]
[1743070371845,4.16231,2033.7,2033.6,2.95652046]
[1743070372046,0.98331,2033.7,2033.6,2.95652046]
[1743070376056,4.19098,2034.0,2033.9,0.98321]
[1743070376355,3.2078,2034.0,2033.9,0.98321]
[1743070376754,0.98321,2033.9,2033.8,3.01012]
[1743070377249,2.33981,2033.9,2033.8,3.01012]
[1743070377849,2.33981,2033.9,2033.8,2.0269]
[1743070378156,2.33981,2033.9,2033.8,3.01016]
[1743070378858,2.33981,2033.9,2033.8,2.0269]
[1743070379058,2.33981,2033.9,2033.8,3.01016]
[1743070379249,2.33981,2033.9,2033.8,2.0269]
[1743070379757,2.33981,2033.9,2033.8,3.01016]
[1743070380059,2.33981,2033.9,2033.8,2.0269]
[1743070380249,2.33981,2033.9,2033.8,3.01016]
[1743070380554,2.33981,2033.9,2033.8,2.0269]
[1743070385649,0.98321,2033.9,2033.8,3.01016]
[1743070385850,2.29851,2033.9,2033.8,3.01016]
[1743070386252,0.98321,2033.9,2033.8,3.01016]
[1743070387356,0.98321,2033.9,2033.8,2.0269]
[1743070387555,0.98321,2033.9,2033.8,3.01016]
[1743070388956,2.37121,2033.9,2033.8,3.01016]
[1743070389459,2.37121,2033.9,2033.8,2.0269]
[1743070391660,2.37121,2033.9,2033.8,0.7076]
[1743070391861,0.98331,2033.7,2033.6,2.04297046]
[1743070392163,0.98331,2033.7,2033.6,0.00737046]
[1743070392552,2.37941,2033.7,2033.6,0.00737046]
[1743070392759,5.58721,2033.7,2033.6,0.00737046]
[1743070392954,6.28691,2033.7,2033.6,0.00737046]
[1743070396554,3.07911,2033.7,2033.6,0.00737046]
[1743070396763,6.28691,2033.7,2033.6,0.00737046]
[1743070399467,6.91631,2033.7,2033.6,0.00737046]
[1743070404268,3.70851,2033.7,2033.6,0.00737046]
[1743070404571,6.91631,2033.7,2033.6,0.00737046]
[1743070408372,6.28691,2033.7,2033.6,0.00737046]
[1743070408572,6.28691,2033.7,2033.6,1.37477046]
[1743070408778,6.28691,2033.7,2033.6,0.00737046]
[1743070409657,6.28691,2033.7,2033.6,1.37477046]